[Event "Catalonia Championship Absolute 2024"]
[Site "Salou Tarragona"]
[Date "2024.05.14"]
[Round "2.2"]
[White "Granados Gomez, Manuel"]
[Black "Alsina Leal, Daniel"]
[Result "0-1"]
[ECO "D04"]
[WhiteElo "2358"]
[BlackElo "2510"]
[Annotator "TA"]
[PlyCount "82"]
[EventDate "2024.05.06"]
[EventType "k.o."]
[EventCountry "ESP"]
[SourceTitle "playchess.com"]
[Source "ChessBase"]
[SourceQuality "1"]
[TimeControl "5400+30"]

{[%evp 9,82,-18,-10,-8,-8,7,-2,0,0,-22,-29,-25,-30,-101,-93,-100,-64,-97,-99,-100,-103,-95,-100,-100,-97,-98,-110,-103,-112,-104,-109,-106,-86,-86,-90,-93,-94,-90,-88,-103,-96,-116,-116,-168,-190,-197,-194,-197,-186,-193,-186,-296,-293,-296,-289,-293,-286,-399,-395,-445,-418,-446,-439,-420,-392,-401,-417,-565,-571,-552,-519,-562,-555,-535,-447]} 1. d4 {[%emt 0:03:49]} Nf6 {[%emt 0:00:35]} 2. Nf3 {[%emt 0:00:15]} c5 {[%emt 0:00:13]} 3. e3 {[%emt 0:00:20]} d5 {[%emt 0:00:19]} 4. b3 {[%emt 0:02:06]} cxd4 {[%emt 0:01:54]} 5. exd4 {[%emt 0:00:17]} Nc6 {[%emt 0:10:54]} 6. Be2 {[%emt 0:00:49]} h6 {[%emt 0:05:37]} 7. O-O {[%emt 0:02:37]} Bf5 {[%emt 0:00:08]} 8. c4 {[%emt 0:01:21] The position is equal.} e6 {[%emt 0:01:28]} 9. Ba3 {[%emt 0:00:49]} Bxa3 {[%emt 0:03:36]} 10. Nxa3 {[%emt 0:00:18]} O-O {[%emt 0:00:55]} 11. Nb5 {[%emt 0:07:22]} (11. Qd2 $11 {keeps the balance.}) 11... a6 $17 {[%emt 0:12:50]} 12. Nc3 {[%emt 0:03:06]} Ne4 {[%emt 0:00:27]} 13. Rc1 {[%emt 0:00:56]} Qa5 {[%emt 0:07:41]} 14. Qe1 {[%emt 0:12:32]} dxc4 {[%emt 0:12:58] Black is much more active.} 15. Nxe4 {[%emt 0:02:15]} Qxe1 {[%emt 0:03:54]} 16. Rfxe1 {[%emt 0:07:08]} ({Not} 16. Nc3 $2 Qxc1 17. Rxc1 cxb3 18. axb3 Rac8 $19) 16... Bxe4 {[%emt 0:00:56]} 17. bxc4 {[%emt 0:00:24]} Rfd8 {[%emt 0:01:11]} 18. Bd1 {[%emt 0:11:30]} Bxf3 {[%emt 0:03:12]} 19. Bxf3 {[%emt 0:00:09]} Rxd4 {[%emt 0:00:36]} 20. Rb1 {[%emt 0:05:44]} Na5 {[%emt 0:03:45][%cal Od4d7]} 21. Bxb7 {[%emt 0:00:45]} Nxb7 {[%emt 0:01:24]} 22. Rxb7 {[%emt 0:00:11]} Rxc4 {[%emt 0:00:22][%mdl 4096] Endgame. KRR-KRR} 23. g3 {[%emt 0:04:52]} Rc5 {[%emt 0:03:47]} 24. Rd1 {[%emt 0:02:48]} Rac8 {[%emt 0:01:34]} 25. Rdd7 {[%emt 0:00:48]} Rf5 {[%emt 0:00:30]} 26. Rdc7 {[%emt 0:00:52]} (26. Rb2 $17) 26... Rxc7 $19 {[%emt 0:00:58]} 27. Rxc7 {[%emt 0:00:08] KR-KR} Ra5 {[%emt 0:00:24]} 28. Rc8+ {[%emt 0:00:16]} Kh7 {[%emt 0:00:09]} 29. Rc2 {[%emt 0:00:04]} g5 {[%emt 0:01:04]} 30. f3 {[%emt 0:00:11]} (30. Kg2 {was worth a try.}) 30... Ra3 {[%emt 0:01:55]} 31. Kf2 {[%emt 0:00:09]} Kg6 {[%emt 0:01:40]} 32. Re2 {[%emt 0:00:18]} h5 {[%emt 0:01:24]} 33. h3 {[%emt 0:00:11]} h4 {[%emt 0:06:22]} 34. g4 {[%emt 0:01:40]} Kf6 {[%emt 0:00:52]} 35. Kg2 {[%emt 0:00:52]} Ke7 {[%emt 0:01:12]} 36. Kf2 {[%emt 0:01:02]} Ra4 {[%emt 0:01:17]} 37. Rd2 {[%emt 0:00:46]} f5 {[%emt 0:01:31]} 38. gxf5 {[%emt 0:00:47]} exf5 {[%emt 0:00:01] Black is clearly winning.} 39. Re2+ {[%emt 0:02:42]} Kd6 {[%emt 0:00:09]} 40. Kg2 {[%emt 0:00:15]} Kd5 {[%emt 0:00:29]} 41. Kf2 {[%emt 0:00:19]} a5 {[%emt 0:01:43] White got outplayed after the opening.   Weighted Error Value: White=0.24 (precise) /Black=0.02 (flawless) .  Mistake:       	White=3     	---        Inaccurate:     	White=3     	Black=1      OK:         	White=5     	Black=23     Best:        	White=1     	Black=1} 0-1

[Event "Catalonia Championship Absolute 2024"]
[Site "Salou Tarragona"]
[Date "2024.05.15"]
[Round "3.1"]
[White "Alsina Leal, Daniel"]
[Black "Narciso Dublan, Marc"]
[Result "1-0"]
[ECO "C47"]
[WhiteElo "2510"]
[BlackElo "2424"]
[Annotator "TA"]
[PlyCount "111"]
[EventDate "2024.05.06"]
[EventType "k.o."]
[EventCountry "ESP"]
[SourceTitle "playchess.com"]
[Source "ChessBase"]
[SourceQuality "1"]
[TimeControl "5400+30"]

{[%evp 17,111,0,6,-3,0,8,0,-7,10,0,0,0,20,0,0,0,10,0,0,0,0,0,0,0,0,-8,17,14,22,15,30,19,26,27,45,45,56,33,31,35,41,37,44,35,42,39,36,30,37,39,38,15,32,19,34,0,17,0,0,0,119,125,125,125,111,134,203,197,202,195,268,239,302,295,287,286,4634,4610,29970,29972,29972,29973,29970,29972,29975,29976,29976,29977,29977,29978,29978,29979,29979,29980,29983,29984]} 1. e4 {[%emt 0:01:49]} e5 {[%emt 0:00:31]} 2. Nf3 {[%emt 0:00:31]} Nc6 {[%emt 0:00:09]} 3. Nc3 {[%emt 0:01:25]} Nf6 {[%emt 0:00:21]} 4. d4 {[%emt 0:00:18]} exd4 {[%emt 0:00:25]} 5. Nxd4 {[%emt 0:00:03]} Bb4 {[%emt 0:01:01]} 6. Nxc6 {[%emt 0:00:25]} bxc6 {[%emt 0:00:13]} 7. Bd3 {[%emt 0:00:23]} d5 {[%emt 0:03:06]} 8. exd5 {[%emt 0:00:40]} cxd5 {[%emt 0:00:11]} 9. O-O {[%emt 0:02:02]} O-O {[%emt 0:00:15]} 10. h3 {[%emt 0:00:21]} c6 {[%emt 0:04:38]} 11. Qf3 {[%emt 0:00:19]} Bd6 {[%emt 0:01:00]} 12. Re1 {[%emt 0:00:37] The position is equal.} h6 {[%emt 0:00:58]} 13. b3 {[%emt 0:09:20]} Nd7 {[%emt 0:16:16]} 14. Bf4 {[%emt 0:15:26] Prevents Ne5.} Nc5 {[%emt 0:01:35]} 15. Bxd6 {[%emt 0:19:29]} Qxd6 {[%emt 0:00:16]} 16. Ne2 {[%emt 0:06:11]} Bd7 {[%emt 0:03:42][%cal Bc8d7,Bd7f5,Bf5g6][%mdl 32]} 17. Qf4 {[%emt 0:06:01]} Qxf4 {[%emt 0:00:53]} 18. Nxf4 {[%emt 0:00:01]} Rfe8 {[%emt 0:03:23]} 19. Bf1 {[%emt 0:05:04]} Bf5 {[%emt 0:06:05]} 20. Ne2 {[%emt 0:06:43]} Ne6 {[%emt 0:01:55]} (20... Bxc2 $6 21. Rec1 Bd3 22. Nd4 (22. Rxc5 Bxe2 23. Rxc6 d4 $14) 22... Bxf1 23. Rxc5 $16) 21. c3 {[%emt 0:01:42]} c5 {[%emt 0:03:20]} 22. Rad1 {[%emt 0:00:24]} Red8 {[%emt 0:05:07]} 23. Ng3 {[%emt 0:02:19]} Bg6 {[%emt 0:04:00]} 24. Re5 {[%emt 0:00:38]} d4 {[%emt 0:01:58]} 25. cxd4 {[%emt 0:02:13]} cxd4 {[%emt 0:00:43]} 26. Bc4 {[%emt 0:02:03]} Rd6 {[%emt 0:14:00]} 27. Ne4 {[%emt 0:13:07]} Bxe4 {[%emt 0:00:44]} 28. Rxe4 {[%emt 0:00:01]} Rad8 {[%emt 0:00:25]} 29. Re5 {[%emt 0:00:17]} Kf8 {[%emt 0:06:32]} 30. h4 {[%emt 0:00:19]} g6 {[%emt 0:08:20]} 31. g3 {[%emt 0:00:35]} Kg7 {[%emt 0:01:50]} 32. Kg2 {[%emt 0:00:21]} Kf6 {[%emt 0:00:27]} 33. Ra5 {[%emt 0:00:37]} R8d7 {[%emt 0:00:18]} 34. Rd2 {[%emt 0:02:10]} h5 {[%emt 0:01:58]} 35. Kf1 {[%emt 0:01:50]} Nd8 {[%emt 0:02:21]} 36. f4 {[%emt 0:00:55]} (36. Bb5 $5 Re7 37. Bd3 $14) 36... Ne6 {[%emt 0:03:10]} 37. Bxe6 {[%emt 0:00:43]} fxe6 $11 {[%emt 0:03:15][%mdl 4096] Endgame. KRR-KRR} 38. Ke2 {[%emt 0:00:42]} Rd5 {[%emt 0:02:47] [#]} (38... Rc6 $11) 39. Rxd5 $1 $16 {[%emt 0:00:33] White leaves nothing to chance now.} Rxd5 {[%emt 0:00:02] KR-KR} 40. Kd3 {[%emt 0:00:14]} Kf5 {[%emt 0:00:43]} 41. Re2 {[%emt 0:00:15]} Kg4 {[%emt 0:01:00]} (41... a5 $16 {was called for.} 42. Re1 e5) 42. Rxe6 $18 {[%emt 0:00:09]} Kxg3 {[%emt 0:00:04][%cal Og6g5]} 43. Rxg6+ {[%emt 0:00:37]} Kxh4 {[%emt 0:01:31]} (43... Kxf4 {keeps fighting.} 44. b4 Rf5) 44. Rg1 {[%emt 0:00:43] [#] Ke4 is the strong threat.} Kh3 {[%emt 0:00:30]} 45. Rg5 {[%emt 0:00:35]} Rd7 {[%emt 0:00:18]} (45... Rxg5 46. fxg5 Kh4 47. g6 (47. Kxd4 $2 Kxg5 48. Ke3 Kf5 $19) 47... Kg5 48. g7 (48. Kxd4 Kxg6 49. b4 Kf5 $11) 48... h4 49. g8=Q+ (49. g8=R+ Kh6 $18) 49... Kf5 50. Qd5+ (50. Kxd4 Kf6 51. Kd5 Kf5 52. Qf7+ Kg4 53. Ke4 Kg3 54. Qf1 h3 55. Qg1+ Kh4 56. Kf4 Kh5 57. Qg5#) 50... Kf6 51. Ke4 (51. Qxd4+ Kf5 52. Qd5+ Kf6 53. Ke4 h3 54. Qe5+ Kg6 55. Qe6+ Kg7 56. Kf5 h2 57. Qg6+ Kh8 58. Kf6 h1=Q 59. Qg7#)) 46. f5 {[%emt 0:01:45][%cal Bf4f5,Bf5f6,Bf6f7][%mdl 32]} (46. Rxh5+ Kg4 47. Rg5+ (47. Re5 Kxf4 48. Ra5 Kg4 $16) 47... Kxf4 $18) 46... h4 $2 {[%emt 0:00:42]} (46... Rf7 47. Rxh5+ (47. Kxd4 Kh4 $11) 47... Kg4) 47. f6 {[%emt 0:00:15] Rg7 would kill now.} Kh2 {[%emt 0:00:27]} 48. Rg7 {[%emt 0:00:30] White mates.} Rd6 {[%emt 0:00:32]} 49. f7 {[%emt 0:00:27]} ({Weaker is} 49. Rxa7 Rxf6 50. b4 Rf2 $11) 49... Rf6 {[%emt 0:00:07]} 50. Kxd4 {[%emt 0:00:05]} h3 {[%emt 0:00:15]} 51. Ke5 {[%emt 0:00:12]} Rf2 {[%emt 0:01:10]} 52. Ke6 {[%emt 0:00:34]} Re2+ {[%emt 0:00:29]} 53. Kd7 {[%emt 0:00:48]} Rf2 {[%emt 0:00:30]} 54. Ke7 {[%emt 0:00:28]} Re2+ {[%emt 0:00:05]} 55. Kf8 {[%emt 0:00:23]} Kh1 {[%emt 0:00:55]} 56. Kg8 {[%emt 0:00:19] Weighted Error Value: White=0.04 (flawless) /Black=0.26 (precise) .  Mistake:       	---       	Black=4      Inaccurate:     	White=1     	Black=1      OK:         	White=15    	Black=13     Best:        	White=4     	Black=2      Strong:       	White=1     	---} 1-0

[Event "Catalonia Championship Absolute 2024"]
[Site "Salou Tarragona"]
[Date "2024.05.16"]
[Round "3.2"]
[White "Guerra Mendez, Jose Angel"]
[Black "Ayats Llobera, Gerard"]
[Result "0-1"]
[ECO "B22"]
[WhiteElo "2489"]
[BlackElo "2449"]
[Annotator "RC"]
[PlyCount "100"]
[EventDate "2024.05.06"]
[EventType "k.o."]
[EventCountry "ESP"]
[SourceTitle "playchess.com"]
[Source "ChessBase"]
[SourceQuality "1"]
[TimeControl "5400+30"]

1. e4 {[%emt 0:00:04]} c5 {[%emt 0:00:04]} 2. c3 {[%emt 0:00:11]} d5 {[%emt 0:00:34]} 3. exd5 {[%emt 0:00:09]} Qxd5 {[%emt 0:00:06]} 4. d4 {[%emt 0:00:09]} e6 {[%emt 0:02:23]} 5. Nf3 {[%emt 0:00:25]} Nf6 {[%emt 0:00:19]} 6. Na3 {[%emt 0:00:39]} Nc6 {[%emt 0:03:40]} 7. Be3 {[%emt 0:06:01]} cxd4 {[%emt 0:00:47]} 8. Nb5 {[%emt 0:00:29]} Qd7 {[%emt 0:03:09]} 9. Nbxd4 {[%emt 0:04:36]} Nxd4 {[%emt 0:00:20]} 10. Bxd4 {[%emt 0:01:45]} a6 {[%emt 0:13:22]} 11. Bd3 {[%emt 0:15:56]} Qc7 {[%emt 0:10:26]} 12. Qe2 {[%emt 0:08:12]} Be7 {[%emt 0:11:03]} 13. O-O-O {[%emt 0:02:56]} Bd7 {[%emt 0:06:09]} 14. Kb1 {[%emt 0:02:39]} Rd8 {[%emt 0:03:40]} 15. g4 {[%emt 0:13:54]} Ba4 {[%emt 0:07:21]} 16. Rde1 {[%emt 0:15:20]} Bc5 {[%emt 0:08:07]} 17. Bxc5 {[%emt 0:13:19]} Qxc5 {[%emt 0:00:50]} 18. Ne5 {[%emt 0:00:04]} Qe7 {[%emt 0:04:20]} 19. f4 {[%emt 0:00:56]} Nd7 {[%emt 0:04:37]} 20. Bc4 {[%emt 0:04:44]} Nxe5 {[%emt 0:11:44]} 21. Qxe5 {[%emt 0:00:07]} Qf6 {[%emt 0:05:04]} 22. Qc5 {[%emt 0:00:05]} Qe7 {[%emt 0:00:41]} 23. Qh5 {[%emt 0:02:26]} O-O {[%emt 0:01:25]} 24. f5 {[%emt 0:00:08]} Bd7 {[%emt 0:00:38]} 25. Rhf1 {[%emt 0:06:02]} Qc5 {[%emt 0:01:02]} 26. fxe6 {[%emt 0:00:58]} Qxh5 {[%emt 0:00:09]} 27. gxh5 {[%emt 0:00:04]} Bxe6 {[%emt 0:00:24]} 28. Bxe6 {[%emt 0:00:41]} fxe6 {[%emt 0:00:02]} 29. Rxf8+ {[%emt 0:00:07]} Rxf8 {[%emt 0:01:54]} 30. Rxe6 {[%emt 0:00:05]} Rf1+ {[%emt 0:00:35]} 31. Kc2 {[%emt 0:00:04]} Rf2+ {[%emt 0:00:02]} 32. Kc1 {[%emt 0:00:47]} Rxh2 {[%emt 0:00:11]} 33. Rb6 {[%emt 0:00:06]} Rxh5 {[%emt 0:00:14]} 34. Rxb7 {[%emt 0:00:05]} Rf5 {[%emt 0:00:54]} 35. Kd2 {[%emt 0:01:40]} h5 {[%emt 0:00:16]} 36. Ke3 {[%emt 0:01:58]} h4 {[%emt 0:01:58]} 37. Rb4 {[%emt 0:00:03]} g5 {[%emt 0:00:00]} 38. Rg4 {[%emt 0:00:03]} Kf7 {[%emt 0:00:00]} 39. b4 {[%emt 0:00:20]} Kg6 {[%emt 0:00:00]} 40. c4 {[%emt 0:00:03]} Kh5 {[%emt 0:00:00]} 41. Rg1 {[%emt 0:00:08]} h3 {[%emt 0:00:06]} 42. c5 {[%emt 0:00:07]} g4 {[%emt 0:01:08]} 43. c6 {[%emt 0:00:19]} h2 {[%emt 0:00:37]} 44. Rc1 {[%emt 0:00:09]} g3 {[%emt 0:00:53]} 45. c7 {[%emt 0:00:03]} Rf8 {[%emt 0:01:14]} 46. Rf1 {[%emt 0:01:58]} g2 {[%emt 0:00:27]} 47. Rxf8 {[%emt 0:00:44]} g1=Q+ {[%emt 0:00:02]} 48. Kd2 {[%emt 0:00:06]} Qd4+ {[%emt 0:00:16]} 49. Ke2 {[%emt 0:00:20]} h1=Q {[%emt 0:00:44]} 50. Rf5+ {[%emt 0:00:45]} Kg6 {[%emt 0:00:11]} 0-1

[Event "Catalonia Championship Absolute 2024"]
[Site "Salou Tarragona"]
[Date "2024.05.16"]
[Round "3.2"]
[White "Narciso Dublan, Marc"]
[Black "Alsina Leal, Daniel"]
[Result "1/2-1/2"]
[ECO "B25"]
[WhiteElo "2424"]
[BlackElo "2510"]
[Annotator "TA"]
[PlyCount "101"]
[EventDate "2024.05.06"]
[EventType "k.o."]
[EventCountry "ESP"]
[SourceTitle "playchess.com"]
[Source "ChessBase"]
[SourceQuality "1"]
[TimeControl "5400+30"]

{[%evp 11,101,0,0,0,-9,0,4,-21,-12,-11,0,-17,13,-4,16,10,9,18,29,-30,-24,-22,-19,-29,-33,-26,-25,-49,0,0,0,-8,18,7,9,0,0,1,1,-37,-25,-21,-7,0,22,-20,0,-43,60,48,59,52,44,77,314,249,253,228,696,641,621,88,88,58,72,13,333,8,31,-42,-49,-35,-37,-35,-46,-46,-36,-36,-35,-92,-30,-37,0,-37,-54,-57,0,-41,0,-60,0,-67]} 1. e4 {[%emt 0:00:08]} c5 {[%emt 0:00:28]} 2. Nc3 {[%emt 0:00:22]} Nc6 {[%emt 0:00:18]} 3. g3 {[%emt 0:00:22]} g6 {[%emt 0:00:05]} 4. Bg2 {[%emt 0:00:15]} Bg7 {[%emt 0:00:06]} 5. d3 {[%emt 0:00:18]} d6 {[%emt 0:00:06]} 6. Nf3 {[%emt 0:00:11]} e6 {[%emt 0:07:09]} 7. O-O {[%emt 0:02:19]} Rb8 {[%emt 0:07:25]} 8. a4 {[%emt 0:10:51]} Nge7 {[%emt 0:07:14]} 9. Bd2 {[%emt 0:01:33]} a6 {[%emt 0:11:52]} 10. Qc1 {[%emt 0:01:41]} h6 {[%emt 0:01:38]} 11. Ne2 {[%emt 0:12:53]} b5 {[%emt 0:01:20]} 12. axb5 {[%emt 0:00:14]} axb5 {[%emt 0:06:56]} 13. Be3 {[%emt 0:03:28]} e5 {[%emt 0:07:44]} 14. c3 {[%emt 0:03:13]} b4 {[%emt 0:04:51]} 15. Nh4 {[%emt 0:14:30]} (15. d4 $142) 15... Na5 $11 {[%emt 0:16:23]} 16. Qc2 {[%emt 0:03:16] Repels Nb3} O-O {[%emt 0:03:01]} 17. f4 {[%emt 0:00:49]} exf4 {[%emt 0:02:58]} 18. gxf4 {[%emt 0:00:43]} Nec6 {[%emt 0:02:35]} 19. Bf2 {[%emt 0:03:04]} bxc3 {[%emt 0:01:34]} (19... Bg4 $15) 20. bxc3 {[%emt 0:00:09]} Bg4 {[%emt 0:02:08]} 21. Nf3 {[%emt 0:08:03]} Qb6 {[%emt 0:05:32]} 22. Rab1 {[%emt 0:03:56]} Qc7 {[%emt 0:01:02]} 23. h3 {[%emt 0:03:26]} Bd7 {[%emt 0:00:42]} 24. f5 {[%emt 0:01:31]} Rxb1 {[%emt 0:04:33]} 25. Rxb1 {[%emt 0:01:30]} gxf5 {[%emt 0:00:57]} 26. Nh4 {[%emt 0:16:47]} Ne7 {[%emt 0:00:30]} 27. Nf4 {[%emt 0:01:11]} Nac6 {[%emt 0:02:20]} 28. Kh1 {[%emt 0:03:23]} Ne5 {[%emt 0:00:43]} 29. Qe2 {[%emt 0:01:45]} N5g6 {[%emt 0:00:47]} ({Black should play} 29... fxe4 $15 30. Bxe4 Bc6) 30. Nfxg6 $1 $14 {[%emt 0:00:39]} Nxg6 {[%emt 0:01:39]} 31. Nxf5 {[%emt 0:00:19]} Bxf5 {[%emt 0:00:28]} 32. exf5 {[%emt 0:00:03]} Nf4 {[%emt 0:00:17]} (32... Qe7 $16 33. Qg4 Ne5) 33. Qg4 {[%emt 0:01:55]} Nxd3 {[%emt 0:00:29]} 34. Bh4 {[%emt 0:00:11] White wants to mate with f6. Black is weak on the light squares} Qc8 $2 {[%emt 0:01:07]} (34... Ne5 35. Qg3 Rb8 36. Rxb8+ Qxb8) 35. Be4 $18 {[%emt 0:02:22][%cal Ob1g1] Rg1! would kill now. This pair of bishops is nice.} Ne5 {[%emt 0:00:26] [#]} 36. Qg3 {[%emt 0:00:02]} (36. Qg2 $1 $18 {and the rest is easy.} Ng6 37. fxg6) 36... f6 $16 {[%emt 0:00:34]} 37. Rb7 {[%emt 0:00:21]} Rf7 {[%emt 0:00:28]} 38. Bd5 {[%emt 0:00:16] White has more active pieces.} (38. Rb6 $16) 38... Kf8 $2 {[%emt 0:00:32][%mdl 8192]} (38... Kh8 $1 $11 {and Black is okay.} 39. Rxf7 Nxf7) 39. Rxf7+ $2 {[%emt 0:01:22]} ({Better is} 39. Rb6 $18) 39... Nxf7 $11 {[%emt 0:00:02] [#]} 40. Bxf6 {[%emt 0:00:33]} Bxf6 $15 {[%emt 0:00:22]} 41. Qg6 {[%emt 0:00:03][%csl LRf6,LRf7] [#]} Qe8 {[%emt 0:00:36]} 42. Qxf6 {[%emt 0:00:08][%mdl 4096] Endgame. aiming for Bxf7. KQB-KQN} Qe1+ {[%emt 0:00:19]} 43. Kh2 {[%emt 0:00:20][%csl Gd5][%cal Rf6f7]} Qf2+ {[%emt 0:01:11]} 44. Bg2 {[%emt 0:01:00]} Qf4+ {[%emt 0:00:21]} 45. Kh1 {[%emt 0:00:32]} (45. Kg1 $1 $15) 45... Qc1+ {[%emt 0:00:09]} (45... Qe5 $17 46. Qxe5 dxe5 (46... Nxe5 47. Kh2 $11)) 46. Kh2 $11 {[%emt 0:00:02]} Qf4+ {[%emt 0:00:05]} 47. Kg1 {[%emt 0:01:10]} Qe3+ {[%emt 0:00:42]} 48. Kf1 {[%emt 0:00:23]} Qd3+ {[%emt 0:00:59]} (48... Qe7 $15 49. Qxe7+ Kxe7) 49. Kg1 {[%emt 0:00:39]} Qe3+ {[%emt 0:00:09]} 50. Kf1 {[%emt 0:00:09]} Qd3+ {[%emt 0:00:23]} 51. Kg1 {[%emt 0:00:05] Blacks defense is rewarded with a draw.   Weighted Error Value: White=0.42/Black=0.39.  Loses game:     	---       	Black=2      Missed win:     	White=1     	---        Mistake:       	White=4     	Black=5      Inaccurate:     	White=5     	Black=3      OK:         	White=8     	Black=19     Best:        	White=6     	---        Strong:       	White=1     	---} 1/2-1/2